Cogmind - Beta 11.1 @@@ ROGUE MODE // 2022.04.28 @ 18:33:14 Player: Olga Result: Destroyed by G-73 Enforcer with Phase Gun Performance ------------- Evolutions (7) 3500 Regions Visited (15) 3000 Robots Destroyed (60) 300 Value Destroyed (2106) 2106 Prototype IDs (26) 520 Alien Tech Used (0) 0 Bonus (1317) 1317 TOTAL SCORE: 10743 Bonus ------- Triggered Max Security 1000 High Alert Combat Kills 17 Aligned with FarCom 300 Cogmind --------- Core Integrity 0/1300 Matter 111/300 Energy 4/100 System Corruption 12% Temperature Cool (9) Movement Core (150) Ox2 Location -3/Quarantine Parts ------- > --- POWER (1) -------- (None) > --- PROPULSION (6) --- (None) > --- UTILITY (12) ----- Cooling System Advanced Terrain Scan Processor Improved Phase Shifter Improved System Shield > --- WEAPON (2) ------- Great Maul > --- INVENTORY (5) ---- (None) Peak State ------------ > --- POWER ------------ Light Antimatter Reactor > --- PROPULSION ------- Nuclear Pulse Array Nuclear Pulse Array Field Propulsion Array > --- UTILITY ---------- Medium Storage Unit Enhanced Optical Array Advanced Sensor Array Advanced Signal Interpreter Long-range Terrain Scanner Advanced Terrain Scan Processor Advanced Terrain Scan Processor 0b10 Decoder Chip [Scout] Advanced Transmission Jammer Improved Phase Shifter Layered Light Armor Plating System Restoration Module > --- WEAPON ----------- Dual-blade Saw Force Lance > --- INVENTORY -------- Q-thruster Cooling System Improved Phase Shifter Improved System Shield Heavy Gauss Cannon Great Maul Dual-blade Saw [Rating: 120] Favorites ----------- Power Nuclear Core Engine Light Ion Engine Power Core Nuclear Core Reactor Light Antimatter Reactor Propulsion Light Treads Treads Light Treads Leg Aluminum Leg Wheel Compact Wheel Hover Unit Cooled Airjet Flight Unit Nuclear Pulse Array Utility Modified TNC Device Advanced Weight Redist. System Storage Medium Storage Unit Processor Modified TNC Hackware Hacking Suite Protection Hardened Light Armor Plating Weapon Light Assault Rifle Energy Gun Small Laser Ballistic Gun Light Assault Rifle Ballistic Cannon Advanced Assault Cannon Impact Weapon Powered Hammer Slashing Weapon Dual-blade Saw Piercing Weapon Enhanced Force Lance Build | -11 -10 -10 -9 -9 -9 -8 -8 -7 -6 -6 -6 -5 -4 -3 -3 ------- Run | Scr Mat Min Mat Min Exi Min Mat Fac Fac Low Low Fac Fac Res Qua Slots Evolved 14 | . . . 2 . . . 2 2 2 . . 2 2 2 . Power . | . . . . . . . . . . . . . . . . Propulsion 4 | . . . . . . . 1 1 . . . 2 . . . Utility 10 | . . . 2 . . . 1 1 2 . . . 2 2 . Weapon . | . . . . . . . . . . . . . . . . Parts Attached 113 | . 9 11 11 3 2 . 22 8 2 2 . 8 9 21 5 Power 18 | . 3 2 2 2 . . 2 2 . . . 1 1 3 . Engine 8 | . 2 1 2 2 . . . 1 . . . . . . . Core 7 | . 1 1 . . . . 2 1 . . . 1 1 . . Reactor 3 | . . . . . . . . . . . . . . 3 . Propulsion 30 | . 2 5 2 . . . 9 1 . 1 . 4 . 6 . Treads 9 | . . 2 . . . . 7 . . . . . . . . Leg 5 | . 2 3 . . . . . . . . . . . . . Wheel 2 | . . . 2 . . . . . . . . . . . . Hover 1 | . . . . . . . . . . . . 1 . . . Flight 13 | . . . . . . . 2 1 . 1 . 3 . 6 . Utility 45 | . 2 1 6 . 2 . 7 3 2 1 . 2 6 10 3 Device 19 | . 1 1 1 . . . 2 1 . . . 1 3 7 2 Storage 6 | . 1 . 2 . 1 . 1 . . . . . . 1 . Processor 9 | . . . 1 . 1 . 1 . 2 1 . . 1 2 . Hackware 2 | . . . . . . . . 1 . . . . . . 1 Protection 9 | . . . 2 . . . 3 1 . . . 1 2 . . Artifact . | . . . . . . . . . . . . . . . . Weapon 20 | . 2 3 1 1 . . 4 2 . . . 1 2 2 2 Energy Gun . | . . . . . . . . . . . . . . . . Energy Cannon . | . . . . . . . . . . . . . . . . Ballistic Gun 10 | . 2 3 1 1 . . 3 . . . . . . . . Ballistic Cannon 1 | . . . . . . . . . . . . 1 . . . Launcher . | . . . . . . . . . . . . . . . . Special Weapon . | . . . . . . . . . . . . . . . . Impact Weapon 4 | . . . . . . . 1 2 . . . . . . 1 Slashing Weapon 3 | . . . . . . . . . . . . . 2 . 1 Piercing Weapon 2 | . . . . . . . . . . . . . . 2 . Special Melee Weapon . | . . . . . . . . . . . . . . . . Unidentified Prototypes 1 | . . . . . . . . . . . . 1 . . . Parts Lost 30 | . . 4 2 1 . . . 1 . 2 . 1 2 16 1 Power 6 | . . 2 . 1 . . . . . . . . 1 2 . Propulsion 11 | . . 2 1 . . . . 1 . 2 . . . 5 . Utility 12 | . . . 1 . . . . . . . . 1 1 9 . Weapon 1 | . . . . . . . . . . . . . . . 1 Highest Loss Streak 14 | . . 2 1 1 . . . 1 . 2 . 1 1 14 1 To Critical Strikes . | . . . . . . . . . . . . . . . . Average Slot Usage (%) 86 | . 92 97 82 98 100 100 96 82 78 76 73 75 83 76 4 Engine 2 | . 8 2 11 9 11 11 . 1 . . . . . . . Core 5 | . 5 10 . . . . 8 5 6 6 6 5 4 2 . Treads 7 | . . 4 19 . . . 19 . . . . . . . . Leg 3 | . 28 23 . . . . . . . . . . . . . Wheel 3 | . . . . 22 22 22 4 . . . . . . . . Flight 5 | . . . . . . . . 19 13 9 6 11 15 12 . Device 7 | . 7 14 7 11 5 . . 15 13 7 6 4 6 14 . Storage 8 | . 14 14 11 11 11 11 9 7 6 6 6 5 5 3 . Processor 17 | . . . 2 11 17 22 24 15 24 31 33 29 22 25 4 Hackware 1 | . . . . . . . . 6 6 6 6 5 3 . . Protection 6 | . . . 8 11 11 11 9 . . . . . 13 7 . Ballistic Gun 11 | . 15 28 22 22 22 22 17 . . . . . . . . Impact Weapon 1 | . . . . . . . . 8 6 6 6 5 1 . . Slashing Weapon 1 | . . . . . . . . . . . . . 6 5 . Naked Turns . | . . . . . . . . . . . . . . . . Heaviest Build 42 | 12 18 18 21 25 34 34 42 24 20 20 19 28 36 41 8 Greatest Support 60 | 20 20 40 40 26 26 26 60 25 20 20 12 48 39 43 3 Greatest Overweight (x) 2 | . . 1 1 . 1 1 1 . . 1 1 1 . 1 2 Average Overweight (x) . | . . . . . . 1 . . . . 1 . . . . Largest Inventory Capacity 20 | . 10 10 20 10 15 15 15 10 10 10 10 10 10 10 5 Average Capacity 11 | . 8 10 10 10 10 15 14 10 10 10 10 10 10 9 5 Most Carried 15 | . 10 10 10 10 10 10 15 10 10 10 10 10 10 10 5 Average Carried 10 | . 7 9 9 9 10 10 14 9 9 9 10 9 9 9 4 Final Capacity 15 | 8 10 10 10 10 15 15 10 10 10 10 10 10 10 5 5 Final Carried 10 | 6 10 9 9 10 10 10 10 10 10 10 10 10 9 5 . Class Distribution -------------------- 23% | Scavenger-Mutant 21% | Scout 17% | Scavenger-Skirmisher 13% | Mutant 12% | Skirmisher 5% | Derelict-Ninja Dominant Class ---------------- Mutant | -10/Materials Scavenger-Mutant | -10/Mines Scavenger-Mutant | -9/Materials Scavenger-Mutant | -9/Mines Scavenger-Mutant | -9/Exiles Skirmisher | -8/Mines Scavenger-Skirmisher | -8/Materials Scout | -7/Factory Scout | -6/Factory Mutant | -6/Lower Caves Mutant | -6/Lower Caves Scout | -5/Factory Scout | -4/Factory Derelict-Ninja | -3/Research Mutant | -3/Quarantine Resources | -11 -10 -10 -9 -9 -9 -8 -8 -7 -6 -6 -6 -5 -4 -3 -3 ----------- Run | Scr Mat Min Mat Min Exi Min Mat Fac Fac Low Low Fac Fac Res Qua Matter Collected 1589 | 186 100 195 103 129 . . 592 75 . 40 . 50 . 119 . Remotely . | . . . . . . . . . . . . . . . . Salvage Created 2226 | . 219 279 257 205 . . 963 49 . 48 . 114 54 38 . Parts 118 | . 16 19 11 15 . . 42 . . 2 . 5 3 5 . Haulers Intercepted 3 | . 1 . 1 . . . 1 . . . . . . . . Recyclers Shooed 1 | . . . . . . . 1 . . . . . . . . Parts Field Recycled . | . . . . . . . . . . . . . . . . Retrieved Matter . | . . . . . . . . . . . . . . . . Parts Self-Destructed 4 | . . . . . . . . . . 4 . . . . . Prevented 2 | . . . . . . . . . . 2 . . . . . Kills | -11 -10 -10 -9 -9 -9 -8 -8 -7 -6 -6 -6 -5 -4 -3 -3 ------- Run | Scr Mat Min Mat Min Exi Min Mat Fac Fac Low Low Fac Fac Res Qua Combat Hostiles Destroyed 55 | . 4 10 6 7 . . 21 1 . 2 . 3 1 . . Melee 6 | . . . . . . . 2 1 . 1 . 1 1 . . Guns 46 | . 4 10 6 7 . . 19 . . . . . . . . Classes Destroyed 7 | . 2 1 1 . . . 2 1 . . . . . . . Hauler 3 | . 1 . 1 . . . 1 . . . . . . . . Watcher 2 | . . . 1 . . . . . . . . . . 1 . Swarmer 17 | . . 6 3 4 . . . . . 2 . 2 . . . Grunt 30 | . 4 4 3 3 . . 16 . . . . . . . . Brawler 1 | . . . . . . . 1 . . . . . . . . Sentry 5 | . . . . . . . 4 . . . . 1 . . . Programmer 2 | . . . . . . . . 1 . . . . 1 . . Best Kill Streak 5 | . 2 3 3 4 . . 5 1 . 2 . 2 1 1 . Combat Bots Only 5 | . 2 3 3 4 . . 5 1 . 2 . 2 1 . . Max Kills in Single Turn 2 | . 1 1 1 2 . . 1 1 . 1 . 1 1 1 . Gunslinging 1 | . . . . 1 . . . . . . . . . . . Exploded . | . . . . . . . . . . . . . . . . Melee 1 | . . . . . . . 1 1 . 1 . 1 1 . . Uniques/NPCs Destroyed . | . . . . . . . . . . . . . . . . Combat | -11 -10 -10 -9 -9 -9 -8 -8 -7 -6 -6 -6 -5 -4 -3 -3 -------- Run | Scr Mat Min Mat Min Exi Min Mat Fac Fac Low Low Fac Fac Res Qua Damage Taken 6019 | . 205 694 480 293 . . 627 118 . 159 . 327 541 2276 299 Core 1971 | . 27 177 61 49 . . 69 41 . 63 . 77 104 1047 256 Absorbed by Shields 91 | . . . . . . . . . . . . . . 91 . Redirected to Shielding 73 | . . . 12 . . . . . . . . . 61 . . Core Remaining (%) 80 | 100 . 18 . . . 72 87 94 . . 92 92 90 . . Volleys Fired 156 | . 16 41 30 23 . . 44 . . . . 2 . . . Largest 2 | . 2 2 2 2 . . 2 . . . . 1 . . . Hottest 60 | . 60 40 40 40 . . 50 . . . . 48 . . . Shots Fired 310 | . 32 82 60 46 . . 88 . . . . 2 . . . Gun 308 | . 32 82 60 46 . . 88 . . . . . . . . Cannon 2 | . . . . . . . . . . . . 2 . . . Launcher . | . . . . . . . . . . . . . . . . Special . | . . . . . . . . . . . . . . . . Kinetic 294 | . 16 82 60 46 . . 88 . . . . 2 . . . Thermal 16 | . 16 . . . . . . . . . . . . . . Explosive . | . . . . . . . . . . . . . . . . Electromagnetic . | . . . . . . . . . . . . . . . . Robot Hit Streak 17 | . 11 7 13 11 . . 17 . . . . . . . . Robot Miss Streak 6 | . 2 3 6 3 . . 4 . . . . . . . . Penetration Max . | . . . . . . . . . . . . . . . . Secondary Targets 9 | . . 4 3 1 . . 1 . . . . . . . . Max Gunslinging Chain 1 | . . 1 1 1 . . 1 . . . . . . . . Shots Hit Robots 250 | . 26 49 41 30 . . 74 4 . 2 . 8 13 3 . Core Hits 128 | . 13 23 16 13 . . 54 1 . 1 . . 4 3 . Critical Kills 3 | . . . 2 . . . 1 . . . . . . . . Critical Parts Destroyed 8 | . . . 1 . . . 1 2 . 1 . 3 . . . Critical Strikes 15 | . . . 3 . . . 2 2 . 1 . 3 3 1 . Destroy 3 | . . . 3 . . . . . . . . . . . . Smash 8 | . . . . . . . 2 2 . 1 . 3 . . . Sever 4 | . . . . . . . . . . . . . 3 1 . Melee Attacks 54 | . . . . . . . 2 4 . 5 . 11 19 13 . Impact 22 | . . . . . . . 2 4 . 5 . 11 . . . Slashing 29 | . . . . . . . . . . . . . 19 10 . Piercing 3 | . . . . . . . . . . . . . . 3 . Sneak Attacks 3 | . . . . . . . 2 1 . . . . . . . Combat Hostiles 3 | . . . . . . . 2 1 . . . . . . . Follow-up Attacks 2 | . . . . . . . . . . . . . 2 . . Damage Inflicted 3947 | . 246 411 351 254 . . 1575 251 . 89 . 329 346 95 . Guns 2670 | . 246 407 347 254 . . 1416 . . . . . . . . Cannons . | . . . . . . . . . . . . . . . . Explosions . | . . . . . . . . . . . . . . . . Melee 1255 | . . . . . . . 159 251 . 89 . 329 346 81 . Ramming 22 | . . 4 4 . . . . . . . . . . 14 . Kinetic 2550 | . 126 407 347 254 . . 1416 . . . . . . . . Thermal 120 | . 120 . . . . . . . . . . . . . . Explosive . | . . . . . . . . . . . . . . . . Electromagnetic . | . . . . . . . . . . . . . . . . Impact 828 | . . . . . . . 159 251 . 89 . 329 . . . Slashing 427 | . . . . . . . . . . . . . 346 81 . Piercing . | . . . . . . . . . . . . . . . . Highest Corruption 12 | . . . . . . . . . . . . . . 12 12 Average Corruption 7 | . . . . . . . . . . . . . . 4 12 Corruption Purged 3 | . . . . . . . . . . . . . . 3 . Corruption Blocked . | . . . . . . . . . . . . . . . . Effects 10 | . . . . . . . . . . . . . . 5 5 Message Errors 1 | . . . . . . . . . . . . . . 1 . Matter Fused 2 | . . . . . . . . . . . . . . 1 1 Heat Flow Errors 2 | . . . . . . . . . . . . . . 1 1 Energy Discharges 1 | . . . . . . . . . . . . . . . 1 Parts Rejected 1 | . . . . . . . . . . . . . . 1 . Data Loss (minor) 1 | . . . . . . . . . . . . . . . 1 Data Loss (major) 1 | . . . . . . . . . . . . . . . 1 Misdirections 1 | . . . . . . . . . . . . . . 1 . Overload Shots . | . . . . . . . . . . . . . . . . Overflow Damage 429 | . . . . . . . 77 162 . 43 . 147 . . . Projectiles . | . . . . . . . . . . . . . . . . Explosions . | . . . . . . . . . . . . . . . . Melee 429 | . . . . . . . 77 162 . 43 . 147 . . . Knockbacks . | . . . . . . . . . . . . . . . . Impact . | . . . . . . . . . . . . . . . . Kinetic . | . . . . . . . . . . . . . . . . Secondary . | . . . . . . . . . . . . . . . . Self-Inflicted Damage 6 | . . . . . . . . . . . . . . 6 . Shots . | . . . . . . . . . . . . . . . . Rammed 3 | . . . 1 . . . . . . . . . . 2 . Targets Rammed 4 | . . 1 1 . . . . . . . . . . 2 . Kicked 1 | . . 1 . . . . . . . . . . . . . Crushed . | . . . . . . . . . . . . . . . . Highest Temperature 198 | . 94 7 21 27 . . 30 . . . . 12 . 198 166 Average Temperature 15 | . 27 4 7 8 . . 8 . . . . 7 . 115 123 Received Heat Transfer 1182 | . 135 183 186 120 . . 342 . . . . 21 54 75 66 Siege Activations . | . . . . . . . . . . . . . . . . Robots Corrupted . | . . . . . . . . . . . . . . . . Combat Hostiles . | . . . . . . . . . . . . . . . . Parts Fried 4 | . . . . . . . . 1 . . . 3 . . . Impact Corruptions 14 | . . . . . . . 1 4 . 2 . 7 . . . Robots Melted . | . . . . . . . . . . . . . . . . Combat Hostiles . | . . . . . . . . . . . . . . . . Parts Melted . | . . . . . . . . . . . . . . . . Heat Transferred 275 | . 275 . . . . . . . . . . . . . . Parts Sabotaged . | . . . . . . . . . . . . . . . . Parts Stolen . | . . . . . . . . . . . . . . . . Parts Stripped . | . . . . . . . . . . . . . . . . Power Chain Reactions . | . . . . . . . . . . . . . . . . Missiles Intercepted . | . . . . . . . . . . . . . . . . Alert | -11 -10 -10 -9 -9 -9 -8 -8 -7 -6 -6 -6 -5 -4 -3 -3 ------- Run | Scr Mat Min Mat Min Exi Min Mat Fac Fac Low Low Fac Fac Res Qua Peak Influence 1600 | . 139 224 129 183 . . 339 116 53 . . 148 447 184 1600 Initial 160 | . . 54 20 33 . . . 51 46 . . 9 72 160 72 Average 152 | . 69 120 65 123 . . 126 78 47 . . 48 244 122 1589 Maximum Alert Level 5 | . . 1 . . . . 1 . . . . . 2 . 5 Low Security (%) 80 | . 100 87 100 100 . 100 62 100 100 . . 100 49 100 . Level 1 15 | . . 12 . . . . 37 . . . . . 34 . . Level 2 1 | . . . . . . . . . . . . . 15 . . Level 3 . | . . . . . . . . . . . . . . . . Level 4 . | . . . . . . . . . . . . . . . . Level 5 . | . . . . . . . . . . . . . . . . High Security . | . . . . . . . . . . . . . . . . Max Security 2 | . . . . . . . . . . . . . . . 99 Squads Dispatched 23 | . . . 1 . . . 2 3 . . . . 3 8 6 Investigation 6 | . . . 1 . . . 1 1 . . . . 1 2 . Extermination 3 | . . . . . . . . . . . . . 1 2 . Reinforcement 7 | . . . . . . . 1 2 . . . . 1 3 . Assault 7 | . . . . . . . . . . . . . . 1 6 Garrison . | . . . . . . . . . . . . . . . . Intercept . | . . . . . . . . . . . . . . . . Searches Triggered . | . . . . . . . . . . . . . . . . Construction Impeded . | . . . . . . . . . . . . . . . . Haulers Reinforced . | . . . . . . . . . . . . . . . . Active Scanning Responses . | . . . . . . . . . . . . . . . . Cargo Convoy Interrupts . | . . . . . . . . . . . . . . . . Stealth | -11 -10 -10 -9 -9 -9 -8 -8 -7 -6 -6 -6 -5 -4 -3 -3 --------- Run | Scr Mat Min Mat Min Exi Min Mat Fac Fac Low Low Fac Fac Res Qua Distress Signals 9 | . 1 . 2 . . . 5 1 . . . . . . . Communications Jammed 1 | . . . . . . . . . . . . . . 1 . Distress Signals 1 | . . . . . . . . . . . . . . 1 . Times Spotted 155 | . 8 10 14 7 . . 33 13 1 3 . 11 21 18 16 Peak Tracking Total 17 | . 3 3 4 4 . . 4 4 1 3 . 6 8 10 17 Tactical Retreats 15 | . . . . . . . 1 2 . . . 2 6 4 . Traps | -11 -10 -10 -9 -9 -9 -8 -8 -7 -6 -6 -6 -5 -4 -3 -3 ------- Run | Scr Mat Min Mat Min Exi Min Mat Fac Fac Low Low Fac Fac Res Qua Traps Triggered 4 | . . . . . . . 1 . . . . . . 3 . Indirectly . | . . . . . . . . . . . . . . . . Trap Hack Attempts . | . . . . . . . . . . . . . . . . Triggered . | . . . . . . . . . . . . . . . . Disarmed . | . . . . . . . . . . . . . . . . Reprogrammed . | . . . . . . . . . . . . . . . . Reused . | . . . . . . . . . . . . . . . . Traps Extracted . | . . . . . . . . . . . . . . . . Installed . | . . . . . . . . . . . . . . . . Triggered . | . . . . . . . . . . . . . . . . Machines | -11 -10 -10 -9 -9 -9 -8 -8 -7 -6 -6 -6 -5 -4 -3 -3 ---------- Run | Scr Mat Min Mat Min Exi Min Mat Fac Fac Low Low Fac Fac Res Qua Machines Disabled 1 | . . . . . . . 1 . . . . . . . . Max in Single Turn 1 | . . . . . . . 1 . . . . . . . . Garrison Access 5 | . . . . . . . 1 2 . . . . 1 1 . Machines Sabotaged 1 | . . . . . . . . . . . . . . 1 . Garrisons Compromised . | . . . . . . . . . . . . . . . . Overloaded Fab Kills . | . . . . . . . . . . . . . . . . Hacking | -11 -10 -10 -9 -9 -9 -8 -8 -7 -6 -6 -6 -5 -4 -3 -3 --------- Run | Scr Mat Min Mat Min Exi Min Mat Fac Fac Low Low Fac Fac Res Qua Machines Accessed 43 | . 4 . 5 . 1 . 13 7 1 2 . . 5 5 . Terminals 30 | . 4 . 3 . . . 10 4 1 . . . 3 5 . Fabricators . | . . . . . . . . . . . . . . . . Repair Stations 4 | . . . 1 . . . 1 1 . . . . 1 . . Recycling Units 2 | . . . 1 . . . 1 . . . . . . . . Scanalyzers . | . . . . . . . . . . . . . . . . Garrison Access 4 | . . . . . . . 1 2 . . . . 1 . . Total Hacks 115 | . 15 . 16 . 1 . 40 13 1 7 . . 11 11 . Successful 77 | . 12 . 11 . 1 . 31 6 1 7 . . 3 5 . Failed 38 | . 3 . 5 . . . 9 7 . . . . 8 6 . Catastrophic 10 | . 1 . . . . . 1 3 . . . . 3 2 . Database Lockouts . | . . . . . . . . . . . . . . . . Manual 67 | . 11 . 12 . 1 . 25 9 1 . . . 5 3 . Terminals 87 | . 15 . 12 . . . 34 8 1 . . . 6 11 . Fabricators . | . . . . . . . . . . . . . . . . Repair Stations 5 | . . . 1 . . . 1 1 . . . . 2 . . Recycling Units 7 | . . . 3 . . . 4 . . . . . . . . Scanalyzers . | . . . . . . . . . . . . . . . . Garrison Access 8 | . . . . . . . 1 4 . . . . 3 . . Terminal Hacks 37 | . 6 . 4 . 1 . 13 . 1 7 . . 1 4 . Record 9 | . . . . . . . . . . 6 . . . 3 . Prototype ID Bank 1 | . . . . . . . 1 . . . . . . . . Open Door 1 | . . . . . . . . . . 1 . . . . . Level Access Points 1 | . . . . . . . 1 . . . . . . . . Branch Access Points 3 | . 1 . 1 . . . . . 1 . . . . . . Emergency Access Points 2 | . . . . . . . 1 . . . . . 1 . . Terminal Index 1 | . . . 1 . . . . . . . . . . . . Alert Level 1 | . . . . . . . . . . . . . . 1 . Unreport Threat 1 | . . . . . . . 1 . . . . . . . . Locate Traps 4 | . 2 . . . . . 2 . . . . . . . . Dispatch Records 1 | . . . . . . . 1 . . . . . . . . Transport Status 1 | . 1 . . . . . . . . . . . . . . Hauler Manifests 1 | . . . 1 . . . . . . . . . . . . Registered Components 1 | . . . . . . . 1 . . . . . . . . Zone Layout 8 | . 2 . 1 . . . 5 . . . . . . . . EX-Prototype ID Bank 1 | . . . . . 1 . . . . . . . . . . Fabricator Hacks . | . . . . . . . . . . . . . . . . Repair Station Hacks . | . . . . . . . . . . . . . . . . Recycling Unit Hacks . | . . . . . . . . . . . . . . . . Scanalyzer . | . . . . . . . . . . . . . . . . Garrison Access Hacks 4 | . . . . . . . 1 2 . . . . 1 . . Seal Access 4 | . . . . . . . 1 2 . . . . 1 . . Unauthorized Hacks 36 | . 6 . 7 . . . 17 4 . . . . 1 1 . Terminals 27 | . 6 . 3 . . . 13 4 . . . . . 1 . Track 6 | . 2 . . . . . 4 . . . . . . . . Assimilate 4 | . 1 . . . . . 1 2 . . . . . . . Botnet 16 | . 3 . 3 . . . 8 2 . . . . . . . Sabotage 1 | . . . . . . . . . . . . . . 1 . Fabricators . | . . . . . . . . . . . . . . . . Repair Stations 3 | . . . 1 . . . 1 . . . . . 1 . . Mechanics 3 | . . . 1 . . . 1 . . . . . 1 . . Recycling Units 6 | . . . 3 . . . 3 . . . . . . . . Monitor 2 | . . . 1 . . . 1 . . . . . . . . Reject 2 | . . . 1 . . . 1 . . . . . . . . Mask 2 | . . . 1 . . . 1 . . . . . . . . Scanalyzers . | . . . . . . . . . . . . . . . . Garrison Access . | . . . . . . . . . . . . . . . . Data Cores Recovered . | . . . . . . . . . . . . . . . . Used . | . . . . . . . . . . . . . . . . Hacking Detections 32 | . 2 . 4 . . . 9 6 1 . . . 5 5 . Full Trace Events 4 | . . . 1 . . . . 1 . . . . 1 1 . Feedback Events 1 | . . . . . . . . . . . . . 1 . . Hackware Fried 1 | . . . . . . . . . . . . . 1 . . Feedback Blocked . | . . . . . . . . . . . . . . . . Robot Schematics Acquired . | . . . . . . . . . . . . . . . . Robots Built . | . . . . . . . . . . . . . . . . Authchips . | . . . . . . . . . . . . . . . . Time . | . . . . . . . . . . . . . . . . Total Robot Build Rating . | . . . . . . . . . . . . . . . . Part Schematics Acquired . | . . . . . . . . . . . . . . . . Parts Built . | . . . . . . . . . . . . . . . . Authchips . | . . . . . . . . . . . . . . . . Time . | . . . . . . . . . . . . . . . . Total Part Build Rating . | . . . . . . . . . . . . . . . . Parts Repaired . | . . . . . . . . . . . . . . . . Time . | . . . . . . . . . . . . . . . . Parts Recycled . | . . . . . . . . . . . . . . . . Recycled Matter . | . . . . . . . . . . . . . . . . Retrieved Matter . | . . . . . . . . . . . . . . . . Retrieved Components . | . . . . . . . . . . . . . . . . Parts Scanalyzed . | . . . . . . . . . . . . . . . . Part Schematics Acquired . | . . . . . . . . . . . . . . . . Parts Damaged . | . . . . . . . . . . . . . . . . Bothacking | -11 -10 -10 -9 -9 -9 -8 -8 -7 -6 -6 -6 -5 -4 -3 -3 ------------ Run | Scr Mat Min Mat Min Exi Min Mat Fac Fac Low Low Fac Fac Res Qua Used RIF Installer . | . . . . . . . . . . . . . . . . Robots Hacked . | . . . . . . . . . . . . . . . . Non-combat . | . . . . . . . . . . . . . . . . Combat . | . . . . . . . . . . . . . . . . Robot Hacks Applied . | . . . . . . . . . . . . . . . . Relay Couplers Released 5 | . . . . . . . . 4 . . . . . 1 . Machine Destruction 1 | . . . . . . . . . . . . . . 1 . Programmers 4 | . . . . . . . . 4 . . . . . . . Fabnet Peak Effective % . | . . . . . . . . . . . . . . . . Robots Rewired . | . . . . . . . . . . . . . . . . Allies Hacked . | . . . . . . . . . . . . . . . . Hacks Repelled . | . . . . . . . . . . . . . . . . Allies | -11 -10 -10 -9 -9 -9 -8 -8 -7 -6 -6 -6 -5 -4 -3 -3 -------- Run | Scr Mat Min Mat Min Exi Min Mat Fac Fac Low Low Fac Fac Res Qua Total Allies 6 | . 1 . . . . . 1 1 . 3 . . . . . Largest Group 3 | . 1 1 1 1 1 1 1 1 . 3 . . . . . Highest-Rated Group 60 | . 10 10 10 10 10 10 26 26 . 60 . . . . . Highest-Rated Ally 26 | . 10 10 10 10 10 10 26 26 . 20 . . . . . Total Orders . | . . . . . . . . . . . . . . . . Ally Attacks . | . . . . . . . . . . . . . . . . Total Damage . | . . . . . . . . . . . . . . . . Kills . | . . . . . . . . . . . . . . . . Allies Corrupted . | . . . . . . . . . . . . . . . . Allies Melted 1 | . . . . . . . . . . 1 . . . . . Intel | -11 -10 -10 -9 -9 -9 -8 -8 -7 -6 -6 -6 -5 -4 -3 -3 ------- Run | Scr Mat Min Mat Min Exi Min Mat Fac Fac Low Low Fac Fac Res Qua Robot Analysis Total . | . . . . . . . . . . . . . . . . Derelict Logs Recovered 3 | . . 1 . . . . . . . 2 . . . . . Drone Launches . | . . . . . . . . . . . . . . . . Drone Recoveries . | . . . . . . . . . . . . . . . . Decoded 0b10 Intel 26 | . . . . . . . . . . . . 4 8 14 . Traps 13 | . . . . . . . . . . . . 1 3 9 . Emergency Access 13 | . . . . . . . . . . . . 3 5 5 . Exploration | -11 -10 -10 -9 -9 -9 -8 -8 -7 -6 -6 -6 -5 -4 -3 -3 ------------- Run | Scr Mat Min Mat Min Exi Min Mat Fac Fac Low Low Fac Fac Res Qua Turns Passed 6523 | . 361 492 573 236 220 71 1942 624 43 340 23 236 433 774 155 Spaces Moved 5994 | 1 240 283 298 153 234 68 997 997 115 522 24 256 881 911 14 Core 108 | . . . . . . . . . . 23 24 8 . 39 14 Treads 1035 | . . 40 289 . . . 706 . . . . . . . . Legs 484 | 1 240 243 . . . . . . . . . . . . . Wheels 672 | . . . 9 153 234 68 208 . . . . . . . . Hover 79 | . . . . . . . . . . . . 79 . . . Flight 3616 | . . . . . . . 83 997 115 499 . 169 881 872 . Fastest Speed 30 | 120 120 120 90 90 90 105 32 30 34 34 100 34 34 31 50 Average Speed 71 | 120 120 127 158 90 91 105 140 31 34 36 100 59 34 35 57 Slowest Speed 240 | 120 120 190 240 90 105 105 240 34 34 100 100 110 34 117 150 Overloaded Moves . | . . . . . . . . . . . . . . . . Propulsion Burnouts . | . . . . . . . . . . . . . . . . Robots Hopped 22 | . . . . . . . . 7 2 1 . . 3 9 . Cave-ins Triggered . | . . . . . . . . . . . . . . . . Exploration Rate (%) 31 | 2 38 64 28 34 63 25 63 32 5 70 14 7 23 33 4 Regions Visited 15 Branch Regions 7 Pre-discovered Areas . | . . . . . . . . . . . . . . . . Known Exits Taken 7 | . 1 1 1 . . . 1 . 1 . . 1 . 1 . Unknown Exits Taken 8 | 1 . . . 1 1 1 . 1 . 1 1 . 1 . . Scrap Searched 8 | . . . . . . . . . . 7 1 . . . . Spaces Dug 12 | . . . . . . . . . . . . 2 2 8 . Terrain Destroyed 12 | . . . . . . . . . . . . 2 2 8 . Melee 10 | . . . . . . . . . . . . . 2 8 . Projectile 2 | . . . . . . . . . . . . 2 . . . AOE . | . . . . . . . . . . . . . . . . Terrain Rammed . | . . . . . . . . . . . . . . . . Walls Destroyed . | . . . . . . . . . . . . . . . . Machines Disabled . | . . . . . . . . . . . . . . . . Actions | -11 -10 -10 -9 -9 -9 -8 -8 -7 -6 -6 -6 -5 -4 -3 -3 --------- Run | Scr Mat Min Mat Min Exi Min Mat Fac Fac Low Low Fac Fac Res Qua Total 7845 | . 287 349 353 214 239 67 1460 1292 115 661 23 317 977 1329 162 Wait 1389 | . 9 6 1 32 2 . 342 280 . 124 . 35 66 349 143 Move 5939 | . 239 282 297 152 233 67 996 982 110 519 23 255 875 895 14 Hop 19 | . . . . . . . . 7 2 1 . . 2 7 . Pick Up 55 | . 5 1 4 2 . . 21 4 1 5 . 2 4 6 . Fast Attach 42 | . 3 3 6 . 1 . 5 4 1 1 . 5 3 10 . Attach 30 | . . 1 1 1 . . 2 3 1 1 . 2 5 8 5 Detach 7 | . . . . . . . 1 2 . . . . . 4 . Swap 41 | . 6 7 4 2 1 . 15 1 . . . 1 1 3 . Drop 97 | . 9 7 9 2 2 . 32 5 . 5 . 4 5 17 . Fire 156 | . 16 41 30 23 . . 44 . . . . 2 . . . Melee 51 | . . . . . . . 2 4 . 5 . 11 16 13 . Ram 1 | . . . . . . . . . . . . . . 1 . Kick 1 | . . 1 . . . . . . . . . . . . . Crush 1 | . . . 1 . . . . . . . . . . . . Escape Stasis 16 | . . . . . . . . . . . . . . 16 . Rewire . | . . . . . . . . . . . . . . . . Trap . | . . . . . . . . . . . . . . . . Miscellaneous . | . . . . . . . . . . . . . . . . Route ------- -11/Scrapyard -10/Materials (discovered 3 exits: *Mat / *Min x2) -10/Mines -9/Materials (discovered 2 exits: *Min x2) -9/Mines (discovered 2 exits: *Mat / *Exi) -9/Exiles (discovered 2 exits: [*Min x2]) -8/Mines -8/Materials (discovered 3 exits: *Fac x3) -7/Factory -6/Factory (discovered 2 exits: *Low x2) -6/Lower Caves -6/Lower Caves -5/Factory (discovered 3 exits: *Fac x2 / Upp) -4/Factory -3/Research (discovered 3 exits: *Res x2 / *Qua) -3/Quarantine History --------- Turn | Location | Event 1 | -11/Scrapyard | Discovered new exit (range 0) 1 | -11/Scrapyard | Entered Materials 90 | -10/Materials | Identified exit to Mines 210 | -10/Materials | Discovered new exit (range 6) 362 | -10/Materials | Entered Mines 362 | -10/Mines | Accompanied by 1 ally 531 | -10/Mines | Identified exit to Materials 613 | -10/Mines | Build established: Scavenger-Mutant 656 | -10/Mines | Core integrity fell below 50% 763 | -10/Mines | Core integrity fell below 20% 854 | -10/Mines | Entered Materials 854 | -9/Materials | Accompanied by 1 ally 854 | -9/Materials | Evolved 2 slots: Utility x2 1384 | -9/Materials | Identified exit to Mines 1427 | -9/Materials | Entered Mines 1427 | -9/Mines | Accompanied by 1 ally 1593 | -9/Mines | Discovered new exit (range 18) 1606 | -9/Mines | Received a Rocket Launcher from a helpful Derelict 1638 | -9/Mines | Deemed a non-threat by the Exiles lab entrance 1639 | -9/Mines | Discovered new exit (range 5) 1663 | -9/Mines | Entered Exiles 1663 | -9/Exiles | Accompanied by 1 ally 1675 | -9/Exiles | Discovered new exit (range 17) 1685 | -9/Exiles | Met 8R-AWN 1700 | -9/Exiles | Met EX-HEX 1727 | -9/Exiles | Met EX-BIN 1737 | -9/Exiles | Aligned with FarCom system 1738 | -9/Exiles | Given EX-Vault access code 1759 | -9/Exiles | Opened EX-Vault 1765 | -9/Exiles | Found Modified TNC 1784 | -9/Exiles | Warned to stay clear of 0b10 Research branches 1808 | -9/Exiles | Met EX-DEC 1868 | -9/Exiles | Discovered new exit (range 15) 1883 | -9/Exiles | Left Exiles lab with Modified TNC 1883 | -9/Exiles | Entered Mines 1883 | -8/Mines | Accompanied by 1 ally 1939 | -8/Mines | Discovered new exit (range 14) 1954 | -8/Mines | Entered Materials 1954 | -8/Materials | Accompanied by 1 ally 1954 | -8/Materials | Evolved 2 slots: Propulsion x1, Utility x1 2178 | -8/Materials | Build established: Skirmisher 2369 | -8/Materials | Identified exit to Factory 2973 | -8/Materials | Build established: Scavenger-Skirmisher 3896 | -8/Materials | Entered Factory 3896 | -7/Factory | Accompanied by 1 ally 3896 | -7/Factory | Evolved 2 slots: Propulsion x1, Utility x1 4096 | -7/Factory | Build established: Scout 4512 | -7/Factory | Discovered new exit (range 17) 4520 | -7/Factory | Entered another Factory area 4520 | -6/Factory | Evolved 2 slots: Utility x2 4556 | -6/Factory | Identified exit to Lower Caves 4563 | -6/Factory | Entered Lower Caves 4635 | -6/Lower Caves | A Commander dispatched an escort 4636 | -6/Lower Caves | Learned Extension trap positions 4636 | -6/Lower Caves | Learned Factory stockpile data 4636 | -6/Lower Caves | Learned Armory emergency access door positions 4636 | -6/Lower Caves | Learned Extension stockpile data 4636 | -6/Lower Caves | Learned Research terminal intel 4699 | -6/Lower Caves | Encountered a Warlord checkpoint 4719 | -6/Lower Caves | Learned 12 Factory zone layouts 4773 | -6/Lower Caves | Discovered new exit (range 9) 4903 | -6/Lower Caves | Entered another Lower Caves area 4918 | -6/Lower Caves | Discovered new exit (range 10) 4926 | -6/Lower Caves | Entered Factory 4926 | -5/Factory | Evolved 2 slots: Propulsion x2 4927 | -5/Factory | Identified exit to Upper Caves 4928 | -5/Factory | Identified exit to Factory 5160 | -5/Factory | Discovered exit to Factory (range 9) 5162 | -5/Factory | Entered another Factory area 5162 | -4/Factory | Evolved 2 slots: Utility x2 5482 | -4/Factory | Hacking Suite fried by hacking feedback 5584 | -4/Factory | Discovered new exit (range 20) 5595 | -4/Factory | Entered Research 5595 | -3/Research | Evolved 2 slots: Utility x2 5596 | -3/Research | Loaded intel: 22 terminal locations 5893 | -3/Research | Build established: Derelict-Ninja 6019 | -3/Research | Discovered new exit (range 9) 6027 | -3/Research | Identified exit to Research 6239 | -3/Research | Found Enh. Force Lance 6333 | -3/Research | Core integrity fell below 50% 6333 | -3/Research | System corruption reached 10% 6353 | -3/Research | Lost 14 parts (2p5n7u) 6357 | -3/Research | Discovered exit to Research (range 7) 6357 | -3/Research | Discovered new exit (range 18) 6368 | -3/Research | Identified exit to Quarantine 6369 | -3/Research | Entered Quarantine 6370 | -3/Quarantine | Maximum security lockdown engaged 6370 | -3/Quarantine | Core integrity fell below 20% 6521 | -3/Quarantine | Spotted Striker 6524 | -3/Quarantine | Destroyed by G-73 Enforcer with Phase Gun Last Messages --------------- 06371_ ALERT: Machine network offline. 06372_ ALERT: Performing unscheduled system reset. 06373_ ALERT: Lockdown in effect, collecting threat data. 06374_ FARCOM_MSG: For science! 06390_ System corrupted: Matter fused (-7). 06405_ System corrupted: Energy discharge (-35). 06446_ System corrupted: Component data lost. 06470_ ALERT: Assault forces dispatched. 06489_ System corrupted: Heat flow error (+252). 06508_ System corrupted: Substantial component data lost. 06515_ C-30 ARC bursts open, deploying its payload. 06515_ G-73 Enforcer unfolds itself. 06515_ G-67 Veteran unfolds itself. 06518_ C-30 ARC bursts open, deploying its payload. 06518_ P-80 Master unfolds itself. 06518_ Striker unfolds itself. 06521_ E-15 Imp destroyed. 06521_ Dual-blade Saw destroyed. 06521_ Field Manipulator disabled. 06523_ E-15 Imp knocked back. Map ----- +----------------------------------------------------+ | ????????????????????????????????????????????? | | ????????????????????????????????????????????? | | ????????????????????????????????????????????? | | ????????????????????????????????????????????? | | ????????????????????????????????????????????? | | ????????????????????????????????????????????? | | ????????????????????????????????????????????? | | ????????????????????????????????????????????? | | ????????????????????????????????????????????? | | ????????????????????????????????????????????? | | ????????????????????????????????????????????? | | ????????????????????????????????????????????? | | ???????????????????????????????????+????????? | | ????????????????????????????????? #????????? | | ???????????????????????????????? #????????? | | ????????????????????########### #????????? | | ????????????????????# #????????? | | ????????????????????# C #????????? | | ????????????????????# i % C #????????? | | ????????????????????# %%C g #????????? | | ?????????????????#######g######+####????????? | | ?????????????????# g #??b?????????????? | | ?????????????????# gpg l#????????????????? | | ?????????????????# b # ???????????????? | | ?????????????????# / K p + ???????????????? | | ?????????????????# e@% "" #????????????????? | | ?????????????????# """" #????????????????? | | ?????????????????# % """" #????????????????? | | ?????????????????#! """ #????????????????? | | ?????????????????###########????????????????? | | ????????????????????????????????????????????? | | ????????????????????????????????????????????? | | ????????????????????????????????????????????? | | ????????????????????????????????????????????? | | | | | | | | | | | | | | | | | | | | | | | | | | | | | | | | | +----------------------------------------------------+ Best States ------------- Heat Dissipation 46 Energy Generation 23 Energy Capacity 265 Matter Stores 300 Matter Capacity 300 Sight Range 22 Robot Scan Range 18 Terrain Scan Range 24 Terrain Scan Density 535 Jamming Range 16 Additional Mass Support 9 Armor Coverage 300 Resistance: TH 10 Core Shielding 20 Propulsion Shielding 66 Evasion (%) 73 Targeting Accuracy 6 Recoil Reduction 3 Offensive Hacking 10 Item Schematics ----------------- None Robot Schematics ------------------ None Fabricated ------------ Nothing Alien Tech Used ----------------- None Achievements -------------- None Challenges ------------ None Game ------ Seed DisruptionImpulseScanner Manual? 0 Play Time 01:31:58 Cumulative 104.8 hours Start 2022.04.28 @ 15:03:32 End 2022.04.28 @ 18:33:14 Sessions 3 Manual Loads 0 Difficulty Rogue Special Mode None Game No. 130 Rogue 129 Adventurer 0 Explorer 1 Win Type - Total 0 Types 0/0/0/0/0/0/0/0/0 Lore% 54 Gallery% 52 Achievement% 44 Wizard Run 0 Options --------- ASCII 1 Keyboard 0 Movement Vi Keybinds 0 Fullscreen 1 Font 18/SmallcapsGlow Map View 76x50 Tactical HUD 1 Map Filters NONE Filters NONE Steam 1 RUN: ace1d432-a413-4601-b659-7ddd978f9ade